bitfinex/quotes_SOLUSD_20240604
["timestamp","ask_amount","ask_price","bid_price","bid_amount"]
[1717524703129,6.68,169.54,169.53,2.1824]
[1717524704145,2.1821,169.56,169.52,2.1825]
[1717524704454,6.68,169.53,169.52,2.1825]
[1717524704745,2.1821,169.56,169.52,2.1825]
[1717524705127,2.1819,169.57,169.53,2.1824]
[1717524705328,6.68,169.54,169.53,2.1824]
[1717524705933,6.68,169.54,169.52,2.1825]
[1717524706133,6.68,169.53,169.52,2.1825]
[1717524706329,2.1819,169.57,169.5,4.3657]
[1717524706330,6.68,169.54,169.53,2.1824]
[1717524707129,2.1819,169.57,169.53,2.1824]
[1717524707330,6.68,169.54,169.53,2.1824]
[1717524708261,2.1819,169.57,169.53,2.1824]
[1717524708433,6.68,169.54,169.53,2.1824]
[1717524708833,6.68,169.55,169.53,2.1824]
[1717524710041,2.1818,169.58,169.52,141.1586]
[1717524710354,6.68,169.56,169.54,2.1823]
[1717524710545,6.68,169.56,169.55,2.1822]
[1717524710742,2.1818,169.58,169.54,2.1822]
[1717524711055,6.68,169.56,169.54,2.1822]
[1717524711747,2.1818,169.58,169.55,2.1822]
[1717524711953,6.68,169.56,169.55,2.1822]
[1717524712761,6.68,169.57,169.55,2.1822]
[1717524713454,6.68,169.56,169.54,2.1822]
[1717524715064,6.68,169.56,169.52,145.9637]
[1717524715268,2.1818,169.59,169.53,10.9124]
[1717524715479,10.9057,169.64,169.57,2.1819]
[1717524715774,19.4353,169.65,169.59,2.1816]
[1717524715971,2.1813,169.62,169.59,2.1817]
[1717524716135,6.68,169.61,169.59,2.1817]
[1717524716336,2.1812,169.63,169.59,2.1817]
[1717524716564,6.68,169.61,169.59,2.1817]
[1717524716766,2.1812,169.63,169.59,2.1817]
[1717524716939,6.68,169.62,169.6,2.1815]
[1717524717264,6.68,169.63,169.6,2.1815]
[1717524717749,2.1811,169.64,169.61,2.1814]
[1717524717937,6.68,169.63,169.62,2.1813]
[1717524718138,6.68,169.64,169.61,2.1814]
[1717524718958,2.181,169.65,169.61,2.1814]
[1717524719156,6.68,169.64,169.61,2.1814]
[1717524720067,6.68,169.64,169.61,8.6689]
[1717524721578,2.181,169.65,169.61,2.1814]
[1717524722068,6.68,169.64,169.61,2.1814]
[1717524723043,2.1808,169.66,169.6,124.3631]
[1717524723249,2.1808,169.66,169.62,2.1813]
[1717524723250,6.68,169.65,169.62,2.1813]
[1717524724054,13.0819,169.7,169.63,6.3982]
[1717524724259,6.68,169.67,169.64,2.181]
[1717524724445,8.30558173,169.71,169.67,2.1806]
[1717524724646,2.1803,169.7,169.66,2.1807]
[1717524724870,6.68,169.68,169.66,2.1807]
[1717524726586,6.12538173,169.71,169.67,2.1806]
[1717524726755,6.68,169.69,169.67,2.1806]
[1717524727067,2.1802,169.71,169.67,2.1806]
[1717524727271,6.68,169.69,169.67,2.1806]
[1717524727771,2.1802,169.71,169.67,2.1806]
[1717524727982,6.68,169.69,169.67,2.1806]
[1717524728650,2.1802,169.71,169.67,2.1806]
[1717524728963,6.68,169.69,169.68,2.1805]
[1717524729169,2.18,169.72,169.69,2.1804]
[1717524729356,6.68,169.7,169.69,2.1804]
[1717524730355,6.12619362,169.74,169.69,2.1804]
[1717524730356,2.18,169.73,169.69,2.1804]
[1717524730558,2.1798,169.74,169.68,130.8919]
[1717524730765,6.68,169.73,169.71,2.1801]
[1717524731077,2.1797,169.75,169.71,2.1801]
[1717524731256,6.68,169.73,169.72,2.18]
[1717524731459,2.1797,169.75,169.72,2.18]
[1717524731764,6.68,169.73,169.72,2.18]
[1717524731977,6.68,169.73,169.71,2.1801]
[1717524732362,2.1797,169.75,169.71,2.1801]
[1717524732566,6.68,169.73,169.72,2.18]
[1717524734560,6.68,169.74,169.72,2.18]
[1717524734980,2.1796,169.76,169.73,2.1799]
[1717524735186,6.68,169.74,169.73,2.1799]
[1717524735858,6.68,169.74,169.72,2.1799]
[1717524736758,6.68,169.73,169.72,2.1799]
[1717524737577,6.68,169.74,169.73,2.1799]
[1717524738163,6.68,169.74,169.72,2.1799]
[1717524739365,6.68,169.74,169.71,2.1801]
[1717524739886,6.68,169.73,169.71,2.1801]
[1717524740093,6.68,169.73,169.72,2.18]
[1717524741779,2.1796,169.76,169.73,2.1799]
[1717524742082,6.68,169.74,169.73,2.1799]
[1717524743180,2.1795,169.76,169.73,2.1799]
[1717524743487,6.68,169.75,169.73,2.1799]
[1717524743790,6.68,169.74,169.72,2.1799]
[1717524744788,6.68,169.73,169.72,2.1799]
[1717524745298,6.68,169.74,169.73,2.1799]
[1717524745878,2.1794,169.77,169.73,2.1799]
[1717524746079,6.68,169.75,169.73,2.1799]
[1717524747599,4.3583,169.79,169.74,2.1798]
[1717524747780,6.68,169.75,169.74,2.1798]
[1717524748274,2.1793,169.78,169.75,2.1796]
[1717524748478,6.68,169.76,169.75,2.1796]
[1717524748997,6.68,169.76,169.74,2.1797]
[1717524749302,6.68,169.75,169.74,2.1797]
[1717524750174,8.8596,169.75,169.72,2.18]
[1717524750375,6.68,169.73,169.69,6.5412]
[1717524750586,2.18,169.73,169.68,4.361]
[1717524750797,6.68,169.71,169.68,4.361]
[1717524751012,6.68,169.71,169.7,2.1803]
[1717524751298,6.68,169.76,169.71,2.18]
[1717524751469,6.68,169.72,169.71,2.18]
[1717524761180,6.68,169.72,169.71,6.5404]
[1717524761690,28.8996,169.76,169.72,2.1799]
[1717524761884,6.68,169.73,169.71,4.3603]
[1717524762085,28.8996,169.76,169.73,2.1799]
[1717524762296,6.68,169.74,169.73,2.1799]
[1717524763182,2.1793,169.78,169.75,2.1796]
[1717524763400,6.68,169.76,169.74,2.1797]
[1717524763583,6.68,169.75,169.74,2.1797]
[1717524766987,2.1793,169.78,169.75,2.1796]
[1717524767186,6.68,169.76,169.75,2.1796]
[1717524768304,1.1952712,169.8,169.77,2.1793]
[1717524768501,6.68,169.78,169.77,2.1793]
[1717524769186,3.3742712,169.8,169.77,2.1793]
[1717524769411,6.68,169.78,169.77,2.1793]
[1717524773304,3.3742712,169.8,169.77,2.1793]
[1717524773915,6.68,169.78,169.77,2.1793]
[1717524774508,6.68,169.79,169.77,2.1793]
[1717524775686,8.8591,169.79,169.76,2.1794]
[1717524775918,6.68,169.78,169.76,2.1794]
[1717524776281,6.68,169.78,169.77,2.1794]
[1717524776507,1.1952712,169.8,169.78,2.1792]
[1717524776715,7.8752712,169.8,169.78,2.1792]
[1717524777897,6.68,169.79,169.78,2.1792]
[1717524780289,1.1952712,169.8,169.78,2.1792]
[1717524780516,6.68,169.79,169.78,2.1792]
[1717524781013,1.1952712,169.8,169.78,2.1792]
[1717524781490,1.1952712,169.8,169.79,6.5374]
[1717524781990,1.1952712,169.8,169.79,13.0748]
[1717524782292,1.1952712,169.8,169.79,141.7914]
[1717524782601,1.1952712,169.8,169.79,147.8606]
[1717524783516,1.1952712,169.8,169.79,6.5374]
[1717524785198,1.1952712,169.8,169.79,2.1791]
[1717524786505,1.1952712,169.8,169.79,6.5374]
[1717524787197,1.1952712,169.8,169.79,13.0748]
[1717524787397,1.1952712,169.8,169.79,21.7914]
[1717524787924,1.1952712,169.8,169.79,141.7914]
[1717524801549,1.1952712,169.8,169.79,21.7914]
[1717524801726,1.1952712,169.8,169.79,141.7914]
[1717524802243,1.1952712,169.8,169.75,22.683]
[1717524802244,7.8752712,169.8,169.78,2.1792]
[1717524802449,6.68,169.79,169.77,2.1793]
[1717524802655,6.68,169.78,169.77,2.1793]
[1717524804166,1.1952712,169.8,169.77,10.897]
[1717524804464,7.8752712,169.8,169.79,2.1791]
[1717524805024,1.1952712,169.8,169.78,2.1792]
[1717524805229,6.68,169.79,169.78,2.1792]
[1717524805429,1.1952712,169.8,169.79,2.1791]
[1717524805668,7.8752712,169.8,169.79,2.1791]
[1717524805831,7.8752712,169.8,169.77,4.3588]
[1717524806154,1.1952712,169.8,169.77,4.3588]
[1717524806728,1.1952712,169.8,169.78,2.1792]
[1717524806927,1.1952712,169.8,169.79,2.1791]
[1717524808155,1.1952712,169.8,169.78,2.1792]
[1717524809839,1.1952712,169.8,169.79,2.1791]
[1717524810145,1.1952712,169.8,169.78,2.1792]
[1717524811661,1.1952712,169.8,169.79,2.1791]
[1717524812358,1.1952712,169.8,169.78,2.1792]
[1717524813139,1.1952712,169.8,169.79,2.1791]
[1717524815767,1.1952712,169.8,169.78,2.1792]
[1717524816352,1.1952712,169.8,169.76,6.5386]
[1717524816539,1.1952712,169.8,169.79,2.1791]
[1717524816733,1.1952712,169.8,169.79,21.7914]
[1717524817853,1.1952712,169.8,169.79,28.1426]
[1717524820072,1.1952712,169.8,169.79,21.7914]
[1717524821545,1.1952712,169.8,169.79,15.254]
[1717524821860,1.1952712,169.8,169.79,2.1791]
[1717524821861,7.8752712,169.8,169.79,2.1791]
[1717524822460,1.1952712,169.8,169.79,2.1791]
[1717524822667,1.1952712,169.8,169.79,21.7914]
[1717524828669,1.1952712,169.8,169.79,44.6248]
[1717524828972,7.12e-05,169.8,169.79,64.6248]
[1717524831366,7.12e-05,169.8,169.79,64.7948]
[1717524835279,7.12e-05,169.8,169.79,71.4748]
[1717524836312,7.12e-05,169.8,169.79,48.2255]
[1717524836582,7.12e-05,169.8,169.79,54.9055]
[1717524836958,7.12e-05,169.8,169.79,48.2255]
[1717524837586,7.12e-05,169.8,169.79,54.9055]
[1717524838289,7.12e-05,169.8,169.79,48.6414]
[1717524838484,7.12e-05,169.8,169.79,21.7914]
[1717524839959,6.6800712,169.8,169.79,2.1791]
[1717524840513,7.12e-05,169.8,169.79,6.5374]
[1717524842505,7.12e-05,169.8,169.79,2.1791]
[1717524845482,6.6800712,169.8,169.79,2.1791]
[1717524846083,7.12e-05,169.8,169.79,13.0748]
[1717524846286,6.6800712,169.8,169.79,13.0748]
[1717524846485,7.12e-05,169.8,169.79,13.0748]
[1717524846684,7.12e-05,169.8,169.79,6.5374]
[1717524846987,6.6800712,169.8,169.79,6.5374]
[1717524847786,6.6800712,169.8,169.79,2.1791]
[1717524848406,6.6800712,169.8,169.74,13.0787]
[1717524848579,6.68,169.75,169.74,6.5393]
[1717524850111,6.68,169.75,169.74,33.0787]
[1717524850684,6.68,169.76,169.75,2.1796]
[1717524851605,6.68,169.76,169.75,6.5389]
[1717524853085,6.1603,169.79,169.78,2.1792]
[1717524853319,12.8403,169.79,169.77,2.1793]
[1717524853619,6.68,169.78,169.77,2.1793]
[1717524853983,6.68,169.78,169.73,13.0789]
[1717524854206,6.5372,169.78,169.75,2.1795]
[1717524854517,6.68,169.76,169.75,2.1795]
[1717524854686,2.1797,169.75,169.71,2.1801]
[1717524855020,33.57,169.76,169.71,2.1801]
[1717524855021,33.4272,169.76,169.71,4.3603]
[1717524855211,6.68,169.72,169.71,6.5404]
[1717524857021,6.68,169.72,169.7,2.1802]
[1717524857201,2.1798,169.74,169.71,2.1801]
[1717524857398,6.68,169.72,169.71,2.1801]
[1717524858022,6.68,169.72,169.68,6.5413]
[1717524858023,6.68,169.72,169.7,2.1802]
[1717524858205,6.68,169.71,169.7,2.1802]
[1717524858711,6.68,169.71,169.67,15.2642]
[1717524858916,6.68,169.68,169.67,21.8062]
[1717524859907,6.68,169.69,169.68,10.9026]
[1717524860526,6.68,169.69,169.68,13.0831]
[1717524861311,6.68,169.69,169.68,6.5415]
[1717524864133,6.68,169.69,169.68,2.1805]
[1717524866523,6.68,169.69,169.67,2.1806]
[1717524866728,6.454,169.72,169.67,2.1806]
[1717524866729,6.68,169.68,169.67,2.1807]
[1717524868734,6.68,169.68,169.67,6.5421]
[1717524869033,6.68,169.69,169.68,6.5416]
[1717524869733,6.68,169.69,169.68,2.1805]
[1717524870643,6.68,169.69,169.68,6.5416]
[1717524871124,6.68,169.69,169.68,2.1805]
[1717524871538,8.6341,169.72,169.69,2.1804]
[1717524871836,2.1799,169.73,169.69,2.1803]
[1717524872012,2.3499,169.73,169.7,2.1802]
[1717524872212,2.3499,169.73,169.67,19.6257]
[1717524872438,2.3499,169.73,169.7,2.1802]
[1717524872734,6.68,169.71,169.7,2.1802]
[1717524872917,6.68,169.71,169.69,2.1803]
[1717524873112,6.68,169.7,169.69,2.1803]
[1717524873312,6.68,169.7,169.68,2.1804]
[1717524873609,6.68,169.69,169.68,2.1804]
[1717524884629,8.6004,169.72,169.69,2.1804]
[1717524884844,6.68,169.7,169.69,2.1804]
[1717524885156,6.68,169.7,169.68,10.9026]
[1717524885639,6.68,169.7,169.69,2.1804]
[1717524885838,6.68,169.71,169.7,2.1802]
[1717524886251,6.14257029,169.74,169.72,2.18]
[1717524886435,6.68,169.73,169.68,6.5416]
[1717524886637,6.68,169.72,169.68,19.6244]
[1717524886843,6.68,169.72,169.7,2.1802]
[1717524887571,6.68,169.71,169.7,2.1802]
[1717524889563,6.68,169.72,169.71,2.18]
[1717524891645,6.68,169.72,169.7,2.1802]
[1717524891849,2.1798,169.74,169.7,2.1802]
[1717524892045,6.68,169.71,169.68,4.3611]
[1717524892249,6.68,169.7,169.69,2.1804]
[1717524892457,6.68,169.7,169.69,6.5412]
[1717524893541,6.68,169.7,169.69,2.1804]
[1717524893734,2.1797,169.75,169.71,2.18]
[1717524893934,6.68,169.72,169.71,2.18]
[1717524896345,6.68,169.72,169.69,2.1803]
[1717524896646,6.68,169.7,169.69,2.1803]
[1717524899664,6.68,169.7,169.69,13.0824]
[1717524899967,8.31515543,169.75,169.71,2.1801]
[1717524899968,2.1798,169.74,169.71,2.1801]
[1717524900169,6.68,169.72,169.69,4.3608]
[1717524900367,14.37565543,169.75,169.71,2.1801]
[1717524900568,6.68,169.72,169.71,2.1801]
[1717524901961,6.13545543,169.75,169.72,2.1799]
[1717524902152,6.13545543,169.75,169.73,2.1799]
[1717524902349,26.89,169.76,169.73,2.1799]
[1717524902350,6.68,169.74,169.73,2.1799]
[1717524903047,6.68,169.74,169.72,2.1799]
[1717524903767,28.8996,169.76,169.72,2.1799]
[1717524904180,6.68,169.73,169.72,2.1799]
[1717524904770,6.2331712,169.8,169.75,2.1796]
[1717524904980,8.4121712,169.8,169.73,4.3596]
[1717524905193,8.4121712,169.8,169.75,2.1796]
[1717524905348,6.68,169.76,169.75,2.1796]
[1717524905548,8.4121712,169.8,169.75,2.1796]
[1717524905743,6.68,169.76,169.75,2.1796]
[1717524906764,8.4121712,169.8,169.75,2.1796]
[1717524906959,6.68,169.76,169.75,2.1796]
[1717524907150,8.4121712,169.8,169.76,2.1795]
[1717524907351,6.68,169.77,169.76,2.1795]
[1717524907556,2.1791,169.79,169.75,2.1796]
[1717524907782,6.68,169.76,169.75,2.1796]
[1717524909348,8.4121712,169.8,169.75,2.1796]
[1717524909556,8.4121712,169.8,169.76,2.1795]
[1717524909780,6.68,169.77,169.76,2.1795]
[1717524909982,6.68,169.77,169.75,2.1796]
[1717524910179,6.68,169.77,169.76,2.1795]
[1717524910984,6.2331712,169.8,169.74,4.3594]
[1717524911166,6.68,169.77,169.76,2.1794]
[1717524913294,6.68,169.77,169.7,4.3604]
[1717524913586,2.1795,169.77,169.73,2.1798]
[1717524913762,6.68,169.74,169.73,2.1798]
[1717524914362,6.68,169.75,169.74,2.1798]
[1717524914674,2.1791,169.79,169.75,2.1796]
[1717524914873,6.68,169.76,169.75,2.1796]
[1717524915883,6.68,169.76,169.71,13.0804]
[1717524916066,6.68,169.75,169.74,2.1797]
[1717524917569,6.68,169.75,169.72,4.36]
[1717524917783,2.1793,169.78,169.74,2.1798]
[1717524917971,6.68,169.75,169.74,2.1798]
[1717524918177,6.68,169.75,169.73,2.1798]
[1717524918361,6.68,169.74,169.73,2.1798]
[1717524919157,6.68,169.74,169.73,6.5396]
[1717524919690,0.34,169.77,169.75,2.1796]
[1717524919873,6.68,169.76,169.75,2.1796]
[1717524921268,2.5192,169.78,169.75,2.1796]
[1717524921468,6.68,169.76,169.75,2.1796]
[1717524925188,6.68,169.76,169.74,2.1797]
[1717524925361,6.68,169.75,169.74,2.1797]
[1717524926171,2.1791,169.79,169.75,2.1796]
[1717524926372,6.68,169.76,169.75,2.1796]
[1717524926798,6.68,169.76,169.74,2.1797]
[1717524926969,6.68,169.75,169.74,2.1797]
[1717524927982,6.68,169.75,169.73,2.1798]
[1717524928298,6.68,169.74,169.73,2.1798]
[1717524928868,6.68,169.75,169.73,4.3598]
[1717524929088,6.68,169.75,169.74,2.1798]
[1717524929894,2.5193,169.78,169.75,2.1796]
[1717524930091,6.12249681,169.79,169.78,2.1792]
[1717524930267,7.12e-05,169.8,169.79,2.1791]
[1717524930472,6.6800712,169.8,169.79,2.1791]
[1717524931421,6.6800712,169.8,169.78,2.1792]
[1717524931699,6.68,169.79,169.78,2.1792]
[1717524932200,6.68,169.79,169.77,2.1793]
[1717524932378,6.68,169.78,169.77,2.1793]
[1717524933071,6.68,169.78,169.74,4.3594]
[1717524933072,6.68,169.79,169.78,2.1792]
[1717524933934,6.68,169.79,169.76,2.1794]
[1717524934104,6.68,169.77,169.75,2.1796]
[1717524934395,6.68,169.76,169.68,126.2723]
[1717524934606,6.68,169.74,169.73,2.1799]
[1717524934769,6.68,169.74,169.72,2.1799]
[1717524934964,6.68,169.73,169.72,2.1799]
[1717524935974,0.17,169.77,169.75,2.1795]
[1717524936191,6.68,169.76,169.75,2.1795]
[1717524936781,6.68,169.76,169.74,2.1797]
[1717524937111,6.68,169.75,169.73,2.1798]
[1717524937280,6.68,169.74,169.73,2.1798]
[1717524937686,6.68,169.75,169.74,2.1797]
[1717524938302,6.68,169.75,169.73,2.1798]
[1717524938809,6.68,169.74,169.73,2.1798]
[1717524939302,0.17,169.77,169.74,2.1797]
[1717524939511,0.17,169.78,169.75,2.1796]
[1717524939691,0.17,169.78,169.74,4.3594]
[1717524940012,6.85,169.78,169.77,2.1794]
[1717524940182,7.12e-05,169.8,169.77,2.1794]
[1717524940389,6.68,169.78,169.77,2.1794]
[1717524941290,6.68,169.78,169.76,2.1794]
[1717524944530,6.68,169.77,169.76,2.1794]
[1717524945420,0.1700712,169.8,169.77,2.1794]
[1717524945616,6.68,169.78,169.77,2.1794]
[1717524946318,0.1700712,169.8,169.77,2.1794]
[1717524946522,6.68,169.78,169.77,2.1794]
[1717524946905,6.68,169.78,169.76,2.1794]
[1717524948341,2.1790712,169.8,169.76,2.1794]
[1717524948639,6.68,169.77,169.76,2.1794]
[1717524951443,6.68,169.77,169.73,2.1798]
[1717524951618,26.72,169.76,169.73,2.1798]
[1717524951817,6.68,169.74,169.73,2.1798]
[1717524952771,6.68,169.74,169.73,6.5396]
[1717524953071,0.34,169.78,169.75,2.1796]
[1717524953238,6.68,169.76,169.75,2.1796]
[1717524954672,6.68,169.76,169.73,4.3598]
[1717524954835,0.34,169.78,169.75,2.1796]
[1717524955036,6.68,169.76,169.75,2.1796]
[1717524956148,0.34,169.78,169.75,2.1796]
[1717524956347,6.68,169.76,169.75,2.1796]
[1717524956959,6.13592649,169.79,169.74,10.8988]
[1717524957140,6.68,169.78,169.74,10.8988]
[1717524957346,6.68,169.77,169.76,2.1794]
[1717524957560,6.68,169.77,169.74,4.3595]
[1717524957561,6.68,169.77,169.75,2.1796]
[1717524957764,6.68,169.76,169.75,2.1796]
[1717524959837,6.13592649,169.79,169.76,2.1794]
[1717524960054,7.12e-05,169.8,169.78,2.1792]
[1717524960257,6.68,169.79,169.77,2.1793]
[1717524960445,6.68,169.78,169.77,2.1793]
[1717524960648,7.12e-05,169.8,169.77,4.3588]
[1717524960864,6.68,169.79,169.78,2.1792]
[1717524961659,7.12e-05,169.8,169.79,2.1791]
[1717524962051,6.6800712,169.8,169.79,2.1791]
[1717524962658,7.12e-05,169.8,169.79,2.1791]
[1717524962852,6.6800712,169.8,169.79,2.1791]
[1717524963048,6.6800712,169.8,169.78,2.1792]
[1717524963249,6.68,169.79,169.78,2.1792]
[1717524964460,7.12e-05,169.8,169.79,2.1791]
[1717524965375,6.6800712,169.8,169.79,2.1791]
[1717524965763,7.12e-05,169.8,169.79,2.1791]
[1717524966840,6.6800712,169.8,169.79,2.1791]
[1717524967043,7.12e-05,169.8,169.79,2.1791]
[1717524967281,7.12e-05,169.8,169.79,6.5374]
[1717524969545,7.12e-05,169.8,169.79,13.0748]
[1717524969964,6.6800712,169.8,169.79,2.1791]
[1717524970165,6.6800712,169.8,169.76,10.8974]
[1717524970365,7.12e-05,169.8,169.78,2.1791]
[1717524970570,6.68,169.79,169.78,2.1791]
[1717524972342,7.12e-05,169.8,169.79,2.1791]
[1717524972546,6.6800712,169.8,169.79,2.1791]
[1717524973169,6.6800712,169.8,169.74,6.5391]
[1717524973346,7.12e-05,169.8,169.77,2.1793]
[1717524973546,6.68,169.78,169.77,2.1793]
[1717524976570,6.68,169.78,169.73,4.3597]
[1717524976777,6.68,169.74,169.71,4.3602]
[1717524976970,6.68,169.76,169.73,2.1798]
[1717524977172,6.68,169.74,169.73,2.1798]
[1717524978159,6.68,169.74,169.71,2.1801]
[1717524978562,6.68,169.72,169.69,4.3607]
[1717524978773,6.68,169.7,169.69,4.3607]
[1717524979476,6.68,169.7,169.69,6.5411]
[1717524981785,6.68,169.7,169.69,21.8041]
[1717524981952,0.34,169.77,169.65,120.0]
[1717524981953,2.5194,169.77,169.73,2.1798]
[1717524982151,6.68,169.74,169.73,2.1798]
[1717524983575,6.13955779,169.78,169.72,10.9]
[1717524983884,2.1790712,169.8,169.76,2.1794]
[1717524984177,6.68,169.77,169.76,2.1794]
[1717524984382,7.12e-05,169.8,169.79,2.1791]
[1717524984584,7.12e-05,169.8,169.78,2.1792]
[1717524984792,6.68,169.79,169.78,2.1792]
[1717524985462,6.68,169.79,169.77,2.1793]
[1717524985660,6.68,169.78,169.77,2.1793]
[1717524986569,6.68,169.78,169.76,2.1794]
[1717524986881,6.68,169.77,169.76,2.1794]
[1717524988461,6.68,169.77,169.73,120.0]
[1717524988462,6.68,169.78,169.77,2.1793]
[1717524989600,6.68,169.78,169.76,2.1794]
[1717524989760,6.68,169.78,169.74,4.3594]
[1717524989965,6.68,169.78,169.77,2.1794]
[1717524990688,7.12e-05,169.8,169.79,2.1791]
[1717524990884,6.6800712,169.8,169.79,2.1791]
[1717524991497,7.12e-05,169.8,169.79,6.5374]
[1717524991683,7.12e-05,169.8,169.79,2.1791]
[1717524991860,6.6800712,169.8,169.79,2.1791]
[1717524992373,7.12e-05,169.8,169.79,2.1791]
[1717524992881,7.12e-05,169.8,169.79,6.5374]
[1717524993583,7.12e-05,169.8,169.79,21.7914]
[1717524993968,7.12e-05,169.8,169.79,2.1791]
[1717524994554,7.12e-05,169.8,169.79,15.254]
[1717524994778,7.12e-05,169.8,169.79,148.367]
[1717524994967,7.12e-05,169.8,169.79,183.5742]
[1717524997662,7.12e-05,169.8,169.79,161.7914]
[1717524998086,7.12e-05,169.8,169.79,35.254]
[1717524998302,6.6800712,169.8,169.79,2.1791]
[1717524998477,6.6800712,169.8,169.79,21.7914]
[1717524998478,7.12e-05,169.8,169.79,21.7914]
[1717524999000,7.12e-05,169.8,169.79,15.254]
[1717525000576,7.12e-05,169.8,169.79,6.5374]
[1717525000895,6.6800712,169.8,169.79,2.1791]
[1717525001792,6.6800712,169.8,169.78,2.1792]
[1717525002098,6.68,169.79,169.78,2.1792]
[1717525002866,6.68,169.79,169.77,2.1793]
[1717525003074,6.68,169.78,169.76,2.1794]
[1717525003274,7.12e-05,169.8,169.76,2.1794]
[1717525003275,6.68,169.77,169.76,2.1794]
[1717525004693,6.68,169.77,169.74,2.1796]
[1717525004882,6.68,169.75,169.72,4.3599]
[1717525005087,6.68,169.74,169.72,4.3599]
[1717525005388,6.68,169.74,169.73,2.1799]
[1717525007691,6.68,169.74,169.72,2.18]
[1717525007996,6.68,169.73,169.72,1.68]
[1717525008217,6.68,169.73,169.71,2.1801]
[1717525008371,6.68,169.72,169.71,2.1801]
[1717525018592,6.68,169.72,169.7,2.1802]
[1717525018799,6.68,169.71,169.7,2.1802]
[1717525019594,8.5435,169.75,169.71,2.1801]
[1717525019800,6.68,169.72,169.71,2.1801]
[1717525020511,6.68,169.72,169.69,2.1803]
[1717525020710,6.68,169.7,169.68,2.1805]
[1717525020916,0.34,169.71,169.65,10.9044]
[1717525020917,6.68,169.69,169.65,10.9044]
[1717525021103,2.1803,169.7,169.66,2.1807]
[1717525021409,0.34,169.69,169.67,2.1806]
[1717525021626,6.68,169.68,169.66,2.1807]
[1717525021791,0.17,169.69,169.67,2.1807]
[1717525021990,6.68,169.68,169.67,2.1807]
[1717525025398,6.68,169.68,169.66,2.1807]
[1717525026298,6.68,169.67,169.66,2.1807]
[1717525027919,0.34,169.69,169.67,2.1806]
[1717525028218,6.68,169.68,169.67,2.1806]
[1717525030200,2.18,169.73,169.7,2.1802]
[1717525030403,2.1798,169.74,169.68,10.9027]
[1717525030712,6.68,169.72,169.71,2.1801]
[1717525030911,8.7846,169.77,169.73,2.1799]
[1717525031095,6.68,169.74,169.73,2.1799]
[1717525032208,6.68,169.74,169.71,4.3603]
[1717525032209,6.68,169.74,169.72,2.1799]
[1717525032899,6.68,169.73,169.72,2.1799]
[1717525033523,6.68,169.73,169.71,2.1801]
[1717525033733,6.68,169.72,169.71,2.1801]
[1717525037129,6.68,169.73,169.72,2.18]
[1717525038738,6.13721184,169.77,169.72,4.36]
[1717525039061,6.68,169.78,169.76,2.1795]
[1717525039330,7.12e-05,169.8,169.77,2.1794]
[1717525039500,6.68,169.78,169.77,2.1794]
[1717525039917,6.68,169.79,169.76,2.1795]
[1717525040121,8.8591,169.79,169.76,2.1795]
[1717525040331,6.68,169.78,169.75,2.1796]
[1717525040501,6.68,169.78,169.76,2.1795]